fUST/lending_fUST_20250605
["ID","MTS","AMOUNT","RATE_DAILY","PERIOD"]
[364413387,1749095438375,-440.0,0.00019876,2]
[364413388,1749095438385,-400.0,0.00019876,2]
[364413389,1749095438396,-703.13,0.00019876,2]
[364413390,1749095438406,-440.0,0.00019876,2]
[364413391,1749095438416,-440.0,0.00019876,2]
[364413392,1749095438426,-819.4,0.00019877,2]
[364413393,1749095438436,-440.0,0.00019878,2]
[364413394,1749095438446,-40013.71352424,0.000199,2]
[364413395,1749095438455,-1630.36650911,0.00019934,2]
[364413396,1749095438465,-187.0,0.0001999,2]
[364413397,1749095438474,-187.08436785,0.0001999,2]
[364413399,1749095438484,-28568.97359051,0.0002,2]
[364413401,1749095438495,-3301.7527924,0.0002,2]
[364413403,1749095438504,-500.7787268,0.0002,2]
[364413405,1749095438515,-199.15532474,0.0002,2]
[364413407,1749095438524,-1600.0,0.00020068,2]
[364413409,1749095438534,-828.8566609,0.00020109,2]
[364413411,1749095438543,-1630.36650911,0.00020141,2]
[364413413,1749095438552,-440.0,0.00020145,2]
[364413415,1749095438562,-186.5207383,0.00020145,2]
[364413417,1749095438572,-440.0,0.00020145,2]
[364413419,1749095438583,-440.0,0.00020145,2]
[364413421,1749095438593,-750.79,0.00020145,2]
[364413423,1749095438603,-453.94,0.00020145,2]
[364413425,1749095438612,-440.0,0.00020145,2]
[364413427,1749095438622,-721.47,0.00020145,2]
[364413429,1749095438631,-440.0,0.0002015,2]
[364413431,1749095438641,-400.0,0.0002015,2]
[364413433,1749095438650,-703.13,0.0002015,2]
[364413435,1749095438659,-440.0,0.0002015,2]
[364413437,1749095438669,-440.0,0.0002015,2]
[364413439,1749095438679,-819.4,0.00020151,2]
[364413440,1749095438688,-561.60161946,0.00020152,2]
[364413442,1749095438698,-262.704806,0.00020187,2]
[364413444,1749095438707,-474.73830295,0.00020232,2]
[364413446,1749095438717,-1630.36650911,0.00020348,3]
[364413448,1749095438727,-440.0,0.00020419,2]
[364413450,1749095438738,-440.0,0.00020419,2]
[364413452,1749095438748,-440.0,0.00020419,2]
[364413454,1749095438757,-750.79,0.00020419,2]
[364413456,1749095438768,-453.94,0.00020419,2]
[364413458,1749095438778,-440.0,0.00020419,2]
[364413460,1749095438787,-721.47,0.00020419,2]
[364413462,1749095438797,-53.46236718,0.00020424,2]
[364413465,1749095438816,-386.53763282,0.00020424,2]
[364413467,1749095438825,-14.46236718,0.00020424,2]
[364413470,1749095438837,-385.53763282,0.00020424,2]
[364413472,1749095438847,-148.03431103,0.00020424,2]
[364413522,1749095439783,-347.79695946,0.0001741,2]
[364413525,1749095439795,-438.80370224,0.0001741,2]
[364413528,1749095439805,-440.0,0.00017685,2]
[364413530,1749095439815,-440.0,0.00017959,2]
[364413532,1749095439825,-410.0,0.00018233,2]
[364413534,1749095439836,-440.0,0.00018501,2]
[364413536,1749095439846,-440.0,0.00018775,2]
[364413538,1749095439855,-440.0,0.0001878,2]
[364413540,1749095439865,-440.0,0.00019049,2]
[364413542,1749095439875,-440.0,0.00019054,2]
[364413544,1749095439885,-440.0,0.00019323,2]
[364413546,1749095439895,-440.0,0.00019328,2]
[364413548,1749095439904,-440.0,0.00019597,2]
[364413550,1749095439914,-440.0,0.00019602,2]
[364413552,1749095439924,-440.0,0.00019871,2]
[364413553,1749095439934,-440.0,0.00019876,2]
[364413555,1749095439944,-440.0,0.00020145,2]
[364413557,1749095439954,-440.0,0.0002015,2]
[364413559,1749095439963,-440.0,0.00020419,2]
[364413561,1749095439973,-555.09568897,0.00020424,2]
[364413563,1749095439983,-440.0,0.00020424,2]
[364413565,1749095439992,-440.0,0.00020424,2]
[364413567,1749095440002,-440.0,0.00020424,2]
[364413569,1749095440012,-819.4,0.00020425,2]
[364413570,1749095440022,-250.0,0.00020464,2]
[364413572,1749095440031,-500.0,0.00020547,2]
[364413574,1749095440041,-41374.0,0.000206,30]
[364413576,1749095440051,-2222.16,0.000206,2]
[364413578,1749095440060,-12675.11581177,0.000206,30]
[364413580,1749095440070,-315.01552021,0.000206,30]
[364413582,1749095440080,-440.0,0.00020693,2]
[364413584,1749095440091,-440.0,0.00020693,2]
[364413586,1749095440101,-440.0,0.00020693,2]
[364413588,1749095440111,-750.79,0.00020693,2]
[364413590,1749095440122,-453.94,0.00020693,2]
[364413592,1749095440132,-509.35950024,0.00020693,2]
[364413594,1749095440142,-721.47,0.00020693,2]
[364413596,1749095440152,-440.0,0.00020693,2]
[364413598,1749095440162,-440.0,0.00020698,2]
[364413600,1749095440171,-400.0,0.00020698,2]
[364413601,1749095440181,-703.13,0.00020698,2]
[364413603,1749095440191,-440.0,0.00020698,2]
[364413605,1749095440201,-440.0,0.00020698,2]
[364413607,1749095440211,-440.0,0.00020698,2]
[364413613,1749095440327,-819.4,0.00020699,2]
[364413615,1749095440339,-167.0,0.00020745,2]
[364413617,1749095440348,-2173.38,0.000208,2]
[364413619,1749095440358,-1000.0,0.000208,4]
[364413621,1749095440369,-500.86906914,0.00020859,2]
[364413623,1749095440380,-500.0,0.00020859,2]
[364413625,1749095440390,-500.0,0.00020859,2]
[364413628,1749095440402,-500.0,0.00020859,2]
[364413629,1749095440413,-643.4537016,0.00020859,2]
[364413631,1749095440423,-500.96745623,0.00020859,2]
[364413633,1749095440433,-500.39124324,0.00020859,2]
[364413635,1749095440442,-500.0,0.00020859,2]
[364413637,1749095440451,-500.74783678,0.00020859,2]
[364413639,1749095440461,-501.60711847,0.00020859,2]
[364413641,1749095440471,-500.0,0.00020859,2]
[364413643,1749095440480,-557.39387862,0.00020859,2]
[364413645,1749095440491,-500.0,0.00020859,2]
[364413647,1749095440501,-500.0,0.00020859,2]
[364413649,1749095440511,-500.0,0.00020859,2]
[364413651,1749095440520,-500.0,0.00020859,2]
[364413653,1749095440530,-518.92753543,0.00020859,2]
[364413655,1749095440540,-515.26444385,0.00020859,2]
[364413656,1749095440550,-501.12619978,0.00020859,2]
[364413658,1749095440559,-500.39798166,0.00020859,2]
[364413660,1749095440570,-503.52372284,0.00020859,2]
[364413662,1749095440580,-500.88600089,0.00020859,2]
[364413664,1749095440590,-500.0,0.00020859,2]
[364413666,1749095440600,-500.0,0.00020859,2]
[364413669,1749095440611,-501.77715105,0.00020859,2]
[364413670,1749095440621,-600.0,0.00020859,2]
[364413672,1749095440631,-629.98011552,0.00020859,2]
[364413674,1749095440640,-440.0,0.00020967,2]
[364413676,1749095440651,-440.0,0.00020967,2]
[364413677,1749095440661,-440.0,0.00020967,2]
[364413679,1749095440671,-750.79,0.00020967,2]
[364413680,1749095440681,-453.94,0.00020967,2]
[364413682,1749095440691,-721.47,0.00020967,2]
[364413683,1749095440700,-494.09072262,0.00020967,2]
[364413685,1749095440709,-440.0,0.00020972,2]
[364413686,1749095440719,-400.0,0.00020972,2]
[364413688,1749095440729,-703.13,0.00020972,2]
[364413689,1749095440738,-413.96672061,0.00020972,2]
[364413691,1749095440749,-404.71072659,0.00020972,2]
[364413693,1749095440759,-440.0,0.00020972,2]
[364413694,1749095440769,-819.4,0.00020973,2]
[364413696,1749095440778,-4044.46290167,0.00021,2]
[364413703,1749095440877,-2632.53709833,0.00021,2]
[364413705,1749095440887,-2996.56668717,0.00021,5]
[364413707,1749095440899,-287.70733921,0.00021,5]
[364413709,1749095440919,-440.0,0.00017405,2]
[364413710,1749095440929,-652.28,0.00021,5]
[364413712,1749095440940,-2628.23219521,0.00021,5]
[364413714,1749095440952,-3435.21377841,0.00021,5]
[364413715,1749095440961,-4145.37586627,0.00021,2]
[364413717,1749095440973,-952.03300493,0.00021,2]
[364413719,1749095440984,-500.0,0.00021,2]
[364413721,1749095440996,-1031.83050891,0.00021,2]
[364413722,1749095441008,-6298.79697883,0.00021,2]
[364413831,1749095443150,-420.976198,0.00017679,2]
[364414324,1749095703139,1015.08296117,0.000157,2]
[364414325,1749095890484,247.868203,0.00013699,2]
[364414328,1749096003088,489.0,0.0001552,2]
[364414329,1749096003166,172.64413542,0.000157,2]
[364414330,1749096156311,813.25491213,0.00021918,60]
[364414332,1749096167622,154.45605258,6.8e-07,2]
[364414333,1749096174752,676.98175259,0.00016,2]
[364414334,1749096174774,323.01824741,0.00016,2]
[364414339,1749096379466,157.78072945,0.00013699,2]
[364414340,1749096382093,685.6558532,0.00015636,2]
[364414362,1749096513027,222.9246332,0.00015542,2]
[364414376,1749096632545,-300.0,0.00016314,2]
[364414377,1749096632555,-282.9768744,0.00016314,2]
[364414378,1749096632576,-917.0231256,0.00016314,2]
[364414379,1749096632585,-300.0,0.00016314,2]
[364414380,1749096632594,-300.0,0.00016314,2]
[364414381,1749096632603,-9105.55,0.00016315,2]
[364414382,1749096632613,-231.47116423,0.00016338,2]
[364414383,1749096632622,-24900.0,0.00016407,2]
[364414384,1749096632631,-440.0,0.00016438,2]
[364414385,1749096632640,-440.0,0.00016438,2]
[364414386,1749096632650,-440.0,0.00016438,2]
[364414387,1749096632659,-872.65,0.00016438,2]
[364414388,1749096632669,-1001.54,0.00016438,2]
[364414389,1749096632682,-440.0,0.00016438,2]
[364414390,1749096632693,-439.39464432,0.00016438,2]
[364414391,1749096632703,-440.0,0.00016438,2]
[364414392,1749096632711,-440.0,0.00016438,2]
[364414393,1749096632721,-1271.59,0.00016438,2]
[364414394,1749096632730,-440.0,0.00016438,2]
[364414395,1749096632740,-440.0,0.00016438,2]
[364414396,1749096632749,-440.0,0.00016438,2]
[364414397,1749096632758,-432.84448559,0.00016438,2]
[364414398,1749096632767,-440.0,0.00016438,2]
[364414399,1749096632776,-440.0,0.00016438,2]
[364414400,1749096632785,-440.0,0.00016438,2]
[364414401,1749096632795,-440.0,0.00016438,2]
[364414402,1749096632807,-440.0,0.00016438,2]
[364414403,1749096632816,-440.0,0.00016438,2]
[364414404,1749096632825,-440.0,0.00016438,2]
[364414405,1749096632834,-440.0,0.00016438,2]
[364414406,1749096632845,-440.0,0.00016438,2]
[364414407,1749096632853,-440.0,0.00016438,2]
[364414408,1749096632863,-440.0,0.00016438,2]
[364414409,1749096632871,-530.83,0.00016438,2]
[364414410,1749096632882,-440.0,0.00016438,2]
[364414411,1749096632892,-440.0,0.00016438,2]
[364414412,1749096632903,-440.0,0.00016438,2]
[364414413,1749096632914,-430.0,0.00016438,2]
[364414414,1749096632924,-461.41279938,0.00016438,2]
[364414415,1749096632935,-438.99273223,0.00016438,2]
[364414416,1749096632946,-458.27026235,0.00016438,2]
[364414417,1749096632955,-441.16089819,0.00016438,2]
[364414418,1749096632965,-440.0,0.00016438,2]
[364414419,1749096632976,-410.0,0.00016438,2]
[364414420,1749096632986,-440.0,0.00016438,2]
[364414421,1749096632996,-440.0,0.00016438,2]
[364414422,1749096633007,-440.0,0.00016438,2]
[364414423,1749096633017,-440.0,0.00016438,2]
[364414424,1749096633026,-440.0,0.00016438,2]
[364414425,1749096633035,-440.0,0.00016438,2]
[364414426,1749096633045,-440.0,0.00016438,2]
[364414427,1749096633054,-431.64170506,0.00016438,2]
[364414428,1749096633063,-440.0,0.00016438,2]
[364414429,1749096633072,-434.5462893,0.00016438,2]
[364414430,1749096633082,-440.0,0.00016438,2]
[364414431,1749096633091,-829.91,0.00016438,2]
[364414432,1749096633100,-440.0,0.00016438,2]
[364414433,1749096633110,-440.0,0.00016438,2]
[364414434,1749096633119,-440.0,0.00016438,2]
[364414435,1749096633129,-440.0,0.00016438,2]
[364414436,1749096633138,-440.0,0.00016438,2]
[364414437,1749096633147,-1222.49,0.00016438,2]
[364414438,1749096633156,-412.17394564,0.00016438,2]
[364414439,1749096633165,-500.0,0.00016438,2]
[364414440,1749096633174,-440.0,0.00016712,2]
[364414441,1749096633184,-420.0,0.00016712,2]
[364414442,1749096633193,-440.0,0.00016712,2]
[364414443,1749096633202,-872.65,0.00016712,2]
[364414444,1749096633212,-1001.54,0.00016712,2]
[364414445,1749096633221,-440.0,0.00016712,2]
[364414446,1749096633229,-440.0,0.00016712,2]
[364414447,1749096633239,-420.0,0.00016712,2]
[364414448,1749096633248,-1271.59,0.00016712,2]
[364414449,1749096633257,-440.0,0.00016712,2]
[364414450,1749096633266,-440.0,0.00016712,2]
[364414451,1749096633275,-440.0,0.00016712,2]
[364414452,1749096633285,-440.0,0.00016712,2]
[364414453,1749096633293,-440.0,0.00016712,2]
[364414454,1749096633302,-440.0,0.00016712,2]
[364414455,1749096633311,-440.0,0.00016712,2]
[364414456,1749096633320,-440.0,0.00016712,2]
[364414457,1749096633329,-420.0,0.00016712,2]
[364414458,1749096633338,-440.0,0.00016712,2]
[364414459,1749096633348,-440.0,0.00016712,2]
[364414460,1749096633357,-440.0,0.00016712,2]
[364414461,1749096633366,-440.0,0.00016712,2]
[364414462,1749096633375,-420.0,0.00016712,2]
[364414463,1749096633384,-530.83,0.00016712,2]
[364414464,1749096633393,-440.0,0.00016712,2]
[364414465,1749096633402,-420.0,0.00016712,2]
[364414466,1749096633411,-420.0,0.00016712,2]
[364414467,1749096633420,-440.0,0.00016712,2]
[364414468,1749096633432,-423.45204961,0.00016712,2]
[364414469,1749096633443,-420.0,0.00016712,2]
[364414470,1749096633452,-440.0,0.00016712,2]
[364414471,1749096633461,-440.0,0.00016712,2]
[364414472,1749096633470,-440.0,0.00016712,2]
[364414473,1749096633479,-420.0,0.00016712,2]
[364414474,1749096633489,-440.0,0.00016712,2]
[364414475,1749096633499,-237.69284596,0.00016712,2]
[364414476,1749096633508,-440.0,0.00016712,2]
[364414477,1749096633517,-829.91,0.00016712,2]
[364414478,1749096633526,-420.0,0.00016712,2]
[364414479,1749096633536,-420.0,0.00016712,2]
[364414480,1749096633545,-440.0,0.00016712,2]
[364414481,1749096633554,-440.0,0.00016712,2]
[364414482,1749096633663,-440.0,0.00016712,2]
[364414483,1749096633678,-1222.49,0.00016712,2]
[364414484,1749096633688,-500.0,0.00016712,2]
[364414485,1749096633697,-231.47116423,0.00016821,2]
[364414486,1749096633707,-440.0,0.00016986,2]
[364414487,1749096633717,-440.0,0.00016986,2]
[364414488,1749096633727,-872.65,0.00016986,2]
[364414489,1749096633737,-1001.54,0.00016986,2]
[364414490,1749096633747,-440.0,0.00016986,2]
[364414491,1749096633757,-440.0,0.00016986,2]
[364414492,1749096633767,-1271.59,0.00016986,2]
[364414493,1749096633779,-440.0,0.00016986,2]
[364414494,1749096633789,-440.0,0.00016986,2]
[364414495,1749096633801,-440.0,0.00016986,2]
[364414496,1749096633812,-440.0,0.00016986,2]
[364414497,1749096633822,-388.58803234,0.00016986,2]
[364414498,1749096633831,-440.0,0.00016986,2]
[364414499,1749096633842,-440.0,0.00016986,2]
[364414500,1749096633851,-426.66836829,0.00016986,2]
[364414501,1749096633861,-420.0,0.00016986,2]
[364414502,1749096633871,-380.0,0.00016986,2]
[364414503,1749096633881,-420.0,0.00016986,2]
[364414504,1749096633891,-388.23200574,0.00016986,2]
[364414505,1749096633900,-530.83,0.00016986,2]
[364414506,1749096633909,-158.59671348,0.00016986,2]
[364414507,1749096633918,-440.0,0.00016986,2]
[364414508,1749096633928,-420.0,0.00016986,2]
[364414509,1749096633937,-440.0,0.00016986,2]
[364414510,1749096633947,-440.0,0.00016986,2]
[364414511,1749096633956,-440.0,0.00016986,2]
[364414512,1749096633966,-440.0,0.00016986,2]
[364414513,1749096633976,-829.91,0.00016986,2]
[364414514,1749096633985,-440.0,0.00016986,2]
[364414515,1749096633994,-380.0,0.00016986,2]
[364414516,1749096634004,-1222.49,0.00016986,2]
[364414517,1749096634013,-18211.1,0.00017092,2]
[364414518,1749096634022,-440.0,0.0001726,2]
[364414519,1749096634032,-440.0,0.0001726,2]
[364414520,1749096634042,-872.65,0.0001726,2]
[364414521,1749096634051,-1001.54,0.0001726,2]
[364414522,1749096634060,-380.0,0.0001726,2]
[364414523,1749096634070,-380.0,0.0001726,2]
[364414524,1749096634079,-1271.59,0.0001726,2]
[364414525,1749096634088,-440.0,0.0001726,2]
[364414526,1749096634097,-380.0,0.0001726,2]
[364414527,1749096634106,-440.0,0.0001726,2]
[364414528,1749096634117,-440.0,0.0001726,2]
[364414529,1749096634126,-440.0,0.0001726,2]
[364414530,1749096634136,-440.0,0.0001726,2]
[364414531,1749096634146,-530.83,0.0001726,2]
[364414532,1749096634155,-440.0,0.0001726,2]
[364414533,1749096634165,-440.0,0.0001726,2]
[364414534,1749096634175,-440.0,0.0001726,2]
[364414535,1749096634184,-440.0,0.0001726,2]
[364414536,1749096634194,-440.0,0.0001726,2]
[364414537,1749096634203,-829.91,0.0001726,2]
[364414538,1749096634213,-439.44324504,0.0001726,2]
[364414539,1749096634223,-1222.49,0.0001726,2]
[364414540,1749096634232,-231.47116423,0.00017304,2]
[364414541,1749096634242,-792.94,0.00017394,3]
[364414542,1749096634251,-654.7,0.00017395,3]
[364414543,1749096634260,-359.86,0.00017395,3]
[364414544,1749096634270,-156.587,0.000174,2]
[364414545,1749096634279,-430.0,0.00017404,2]
[364414546,1749096634289,-430.0,0.00017404,2]
[364414547,1749096634298,-440.0,0.00017404,2]
[364414548,1749096634308,-440.0,0.00017404,2]
[364414549,1749096634317,-440.0,0.00017404,2]
[364414550,1749096634326,-440.0,0.00017404,2]
[364414551,1749096634335,-440.0,0.00017404,2]
[364414552,1749096634344,-440.0,0.00017404,2]
[364414553,1749096634353,-344.28995489,0.00017404,2]
[364414554,1749096634363,-430.0,0.00017404,2]
[364414555,1749096634372,-216.54570466,0.00017404,2]
[364414556,1749096634381,-440.0,0.00017404,2]
[364414557,1749096634390,-440.0,0.00017404,2]
[364414558,1749096634400,-411.9357577,0.00017404,2]
[364414559,1749096634409,-433.46962167,0.00017404,2]
[364414560,1749096634419,-445.84188339,0.00017404,2]
[364414561,1749096634428,-439.36262788,0.00017404,2]
[364414562,1749096634438,-440.0,0.00017404,2]
[364414563,1749096634448,-438.2463977,0.00017404,2]
[364414564,1749096634458,-440.0,0.00017404,2]
[364414565,1749096634468,-430.0,0.00017404,2]
[364414566,1749096634477,-253.45530422,0.00017404,2]
[364414567,1749096634487,-440.0,0.00017404,2]
[364414568,1749096634497,-404.23903574,0.00017404,2]
[364414569,1749096634508,-440.0,0.00017404,2]
[364414570,1749096634518,-404.37876923,0.00017404,2]
[364414571,1749096634527,-445.82414822,0.00017404,2]
[364414572,1749096634537,-440.0,0.00017404,2]
[364414573,1749096634547,-440.0,0.00017404,2]
[364414574,1749096634557,-430.0,0.00017404,2]
[364414575,1749096634569,-453.07188305,0.00017404,2]
[364414576,1749096634583,-440.0,0.00017404,2]
[364414577,1749096634599,-430.0,0.00017404,2]
[364414578,1749096634609,-430.0,0.00017404,2]
[364414579,1749096634619,-444.38551305,0.00017404,2]
[364414580,1749096634628,-430.0,0.00017404,2]
[364414581,1749096634639,-245.58447487,0.00017404,2]
[364414582,1749096634649,-430.0,0.00017404,2]
[364414583,1749096634658,-440.0,0.00017404,2]
[364414584,1749096634667,-250.83204065,0.00017404,2]
[364414585,1749096634678,-430.0,0.00017404,2]
[364414586,1749096634688,-440.0,0.00017404,2]
[364414587,1749096634697,-561.46362119,0.00017404,2]
[364414588,1749096634707,-440.0,0.00017404,2]
[364414589,1749096634717,-440.0,0.00017404,2]
[364414590,1749096634726,-430.0,0.00017404,2]
[364414591,1749096634735,-430.0,0.00017404,2]
[364414592,1749096634745,-430.0,0.00017404,2]
[364414593,1749096634755,-440.0,0.00017404,2]
[364414594,1749096634764,-440.0,0.00017404,2]
[364414595,1749096634773,-440.0,0.00017404,2]
[364414596,1749096634783,-440.0,0.00017404,2]
[364414597,1749096634793,-440.0,0.00017404,2]
[364414598,1749096634807,-452.15522675,0.00017404,2]
[364414599,1749096634816,-440.0,0.00017404,2]
[364414600,1749096634825,-440.0,0.00017404,2]
[364414601,1749096634835,-440.0,0.00017404,2]
[364414602,1749096634846,-500.0,0.00017404,2]
[364414603,1749096634856,-647.68912942,0.00017404,2]
[364414604,1749096634865,-440.0,0.00017404,2]
[364414605,1749096634876,-440.0,0.00017404,2]
[364414606,1749096634885,-442.18464585,0.00017404,2]
[364414607,1749096634895,-446.95927574,0.00017404,2]
[364414608,1749096634904,-430.0,0.00017404,2]
[364414609,1749096634914,-433.633589,0.00017404,2]
[364414610,1749096634923,-459.35411922,0.00017404,2]
[364414611,1749096634932,-440.0,0.00017404,2]
[364414612,1749096634942,-431.29772155,0.00017404,2]
[364414613,1749096634951,-430.0,0.00017404,2]
[364414614,1749096634960,-441.26854018,0.00017404,2]
[364414615,1749096634970,-443.03961644,0.00017404,2]
[364414616,1749096634979,-432.51293503,0.00017404,2]
[364414617,1749096634989,-440.0,0.00017404,2]
[364414618,1749096634999,-430.0,0.00017404,2]
[364414619,1749096635009,-430.0,0.00017404,2]
[364414620,1749096635019,-430.0,0.00017404,2]
[364414621,1749096635029,-430.0,0.00017404,2]
[364414622,1749096635038,-440.0,0.00017404,2]
[364414623,1749096635047,-440.0,0.00017404,2]
[364414624,1749096635057,-440.0,0.00017404,2]
[364414625,1749096635066,-440.0,0.00017404,2]
[364414626,1749096635075,-505.05722186,0.00017404,2]
[364414627,1749096635085,-430.0,0.00017404,2]
[364414628,1749096635094,-440.0,0.00017404,2]
[364414629,1749096635104,-440.0,0.00017404,2]
[364414630,1749096635113,-236.68465088,0.00017404,2]
[364414631,1749096635122,-440.0,0.00017404,2]
[364414632,1749096635131,-444.48127124,0.00017404,2]
[364414633,1749096635141,-430.0,0.00017404,2]
[364414634,1749096635151,-424.99006563,0.00017404,2]
[364414635,1749096635160,-440.0,0.00017404,2]
[364414636,1749096635170,-430.0,0.00017404,2]
[364414637,1749096635179,-444.03564968,0.00017404,2]
[364414638,1749096635189,-440.0,0.00017404,2]
[364414639,1749096635199,-440.0,0.00017404,2]
[364414640,1749096635208,-440.0,0.00017404,2]
[364414641,1749096635217,-440.0,0.00017404,2]
[364414642,1749096635236,-440.0,0.00017404,2]
[364414643,1749096635247,-441.866122,0.00017404,2]
[364414644,1749096635257,-440.0,0.00017404,2]
[364414645,1749096635267,-440.0,0.00017404,2]
[364414646,1749096635277,-430.0,0.00017404,2]
[364414647,1749096635286,-440.0,0.00017404,2]
[364414648,1749096635296,-440.0,0.00017404,2]
[364414649,1749096635306,-440.0,0.00017404,2]
[364414650,1749096635317,-440.0,0.00017404,2]
[364414651,1749096635327,-440.0,0.00017404,2]
[364414652,1749096635336,-440.0,0.00017404,2]
[364414653,1749096635346,-440.0,0.00017404,2]
[364414654,1749096635356,-440.0,0.00017404,2]
[364414655,1749096635365,-440.0,0.00017404,2]
[364414656,1749096635375,-430.0,0.00017404,2]
[364414657,1749096635384,-440.0,0.00017404,2]
[364414658,1749096635394,-440.0,0.00017404,2]
[364414659,1749096635404,-440.0,0.00017404,2]
[364414660,1749096635414,-440.0,0.00017404,2]
[364414661,1749096635423,-440.0,0.00017404,2]
[364414662,1749096635433,-440.0,0.00017404,2]
[364414663,1749096635444,-440.0,0.00017404,2]
[364414664,1749096635454,-440.0,0.00017404,2]
[364414665,1749096635463,-440.0,0.00017404,2]
[364414666,1749096635473,-440.0,0.00017404,2]
[364414667,1749096635482,-440.0,0.00017404,2]
[364414668,1749096635492,-430.0,0.00017404,2]
[364414669,1749096635501,-440.0,0.00017404,2]
[364414670,1749096635512,-440.0,0.00017404,2]
[364414671,1749096635521,-430.0,0.00017404,2]
[364414672,1749096635533,-401.77027871,0.00017404,2]
[364414673,1749096635543,-440.0,0.00017404,2]
[364414674,1749096635552,-440.0,0.00017404,2]
[364414675,1749096635563,-440.0,0.00017404,2]
[364414676,1749096635573,-430.0,0.00017404,2]
[364414677,1749096635583,-440.0,0.00017404,2]
[364414678,1749096635593,-440.0,0.00017404,2]
[364414679,1749096635603,-440.0,0.00017404,2]
[364414680,1749096635613,-440.0,0.00017404,2]
[364414681,1749096635623,-430.0,0.00017404,2]
[364414682,1749096635633,-450.0,0.00017404,2]
[364414683,1749096635643,-440.0,0.00017404,2]
[364414684,1749096635653,-440.0,0.00017404,2]
[364414685,1749096635663,-440.0,0.00017404,2]
[364414686,1749096635673,-430.0,0.00017404,2]
[364414687,1749096635683,-440.0,0.00017404,2]
[364414688,1749096635694,-440.0,0.00017404,2]
[364414689,1749096635704,-440.0,0.00017404,2]
[364414690,1749096635714,-440.0,0.00017404,2]
[364414691,1749096635724,-430.0,0.00017404,2]
[364414692,1749096635734,-411.73096947,0.00017404,2]
[364414693,1749096635743,-450.0,0.00017404,2]
[364414694,1749096635753,-440.0,0.00017404,2]
[364414695,1749096635763,-430.0,0.00017404,2]
[364414696,1749096635772,-440.0,0.00017404,2]
[364414697,1749096635783,-440.0,0.00017404,2]
[364414698,1749096635793,-430.0,0.00017404,2]
[364414699,1749096635807,-5970.49,0.00017404,2]
[364414700,1749096635817,-5970.49,0.00017404,2]
[364414701,1749096635826,-440.0,0.00017404,2]
[364414702,1749096635955,-5970.49,0.00017404,2]
[364414703,1749096635965,-504.87557463,0.00017404,2]
[364414704,1749096635976,-430.0,0.00017404,2]
[364414705,1749096635985,-356.76016588,0.00017404,2]
[364414706,1749096635995,-440.0,0.00017404,2]
[364414707,1749096636004,-494.06,0.00017404,2]
[364414708,1749096636013,-430.0,0.00017404,2]
[364414709,1749096636023,-440.0,0.00017404,2]
[364414710,1749096636033,-440.0,0.00017404,2]
[364414711,1749096636042,-430.0,0.00017404,2]
[364414712,1749096636051,-440.0,0.00017404,2]
[364414713,1749096636061,-440.0,0.00017404,2]